fUSD/lending_fUSD_20260612
["ID","MTS","AMOUNT","RATE_DAILY","PERIOD"]
[424905711,1781262632000,-500.0,0.00011343,2]
[424905706,1781262632000,-500.0,0.00011343,2]
[424905712,1781262632000,-500.0,0.00011343,2]
[424905701,1781262632000,-500.0,0.00011343,2]
[424905708,1781262632000,-500.0,0.00011343,2]
[424905709,1781262632000,-500.0,0.00011343,2]
[424905697,1781262632000,-500.0,0.00011343,2]
[424905699,1781262632000,-500.0,0.00011343,2]
[424905703,1781262632000,-500.0,0.00011343,2]
[424905717,1781262632000,-500.0,0.00011343,2]
[424905710,1781262632000,-247.75712817,0.00011343,2]
[424905729,1781262632000,-500.0,0.00011344,2]
[424905730,1781262632000,-300.0,0.00011383,2]
[424905733,1781262632000,-28001.89230987,0.00011443,2]
[424905735,1781262632000,-0.03973188,0.00011443,2]
[424905732,1781262632000,-920087.42341333,0.00011443,2]
[424905719,1781262632000,-500.0,0.00011343,2]
[424905734,1781262632000,-24735.88042665,0.00011443,2]
[424905731,1781262632000,-300.0,0.00011383,2]
[424905720,1781262632000,-500.0,0.00011343,2]
[424905722,1781262632000,-500.0,0.00011343,2]
[424905723,1781262632000,-1926.91384497,0.00011343,2]
[424905726,1781262632000,-250.0,0.00011344,2]
[424905727,1781262632000,-2000.0,0.00011344,2]
[424905721,1781262632000,-500.0,0.00011343,2]
[424905724,1781262632000,-283.81394355,0.00011343,2]
[424905728,1781262632000,-678.02364108,0.00011344,2]
[424905718,1781262632000,-500.0,0.00011343,2]
[424905725,1781262632000,-9222.61369723,0.00011344,2]
[424905748,1781262637000,-3709.51,0.00011444,2]
[424905743,1781262637000,-999.99,0.00011443,2]
[424905747,1781262637000,-44585.39314356,0.00011444,2]
[424905749,1781262637000,-248.84081477,0.00011499,2]
[424905750,1781262637000,-227.78627055,0.00011499,2]
[424905744,1781262637000,-29242.37228992,0.00011444,2]
[424905742,1781262637000,-150.99,0.00011443,2]
[424905740,1781262637000,-527174.76411827,0.00011443,2]
[424905741,1781262637000,-2500000.0,0.00011443,2]
[424905746,1781262637000,-3092.0724,0.00011444,2]
[424905756,1781262637000,-2823.194,0.00011542,2]
[424905745,1781262637000,-4181.1272,0.00011444,2]
[424905755,1781262637000,-200.0,0.00011536,2]
[424905752,1781262637000,-205.00764349,0.00011499,2]
[424905763,1781262637000,-44585.39314352,0.00011544,2]
[424905761,1781262637000,-2000.0,0.00011544,2]
[424905762,1781262637000,-2500.0,0.00011544,2]
[424905760,1781262637000,-33280.8127,0.00011544,2]
[424905764,1781262637000,-157.33036762,0.00011546,2]
[424905758,1781262637000,-42879.01286272,0.00011542,2]
[424905751,1781262637000,-227.78627054,0.00011499,2]
[424905753,1781262637000,-166.66,0.00011507,2]
[424905757,1781262637000,-173.344,0.00011542,2]
[424905759,1781262637000,-9999.99,0.00011542,2]
[424905754,1781262637000,-9999.99,0.00011536,2]
[424905814,1781262638000,-709.0,0.00011933,2]
[424905792,1781262638000,-59567.04735989,0.00011747,2]
[424905804,1781262638000,-21100.0,0.000118,4]
[424905806,1781262638000,-1829.44,0.00011837,2]
[424905805,1781262638000,-1002.94998234,0.00011803,2]
[424905808,1781262638000,-9222.61369723,0.00011852,2]
[424905807,1781262638000,-44585.39314352,0.00011845,2]
[424905811,1781262638000,-1600.0,0.00011899,2]
[424905809,1781262638000,-200.0,0.00011886,2]
[424905812,1781262638000,-26400.0,0.000119,4]
[424905810,1781262638000,-500.0,0.00011892,2]
[424905822,1781262638000,-709.0,0.00011933,2]
[424905816,1781262638000,-709.0,0.00011933,2]
[424905815,1781262638000,-709.0,0.00011933,2]
[424905817,1781262638000,-709.0,0.00011933,2]
[424905820,1781262638000,-709.0,0.00011933,2]
[424905803,1781262638000,-160.0,0.00011791,2]
[424905818,1781262638000,-709.0,0.00011933,2]
[424905819,1781262638000,-709.0,0.00011933,2]
[424905824,1781262638000,-709.0,0.00011933,2]
[424905821,1781262638000,-709.0,0.00011933,2]
[424905823,1781262638000,-500.0,0.00011933,2]
[424905836,1781262638000,-709.0,0.00011933,2]
[424905813,1781262638000,-709.0,0.00011933,2]
[424905783,1781262638000,-186.8,0.000117,4]
[424905796,1781262638000,-157198.38042552,0.00011747,2]
[424905789,1781262638000,-22571.69012537,0.00011747,2]
[424905829,1781262638000,-500.0,0.00011933,2]
[424905765,1781262638000,-1829.44,0.00011562,2]
[424905766,1781262638000,-10351.0,0.00011616,2]
[424905769,1781262638000,-637.96,0.00011643,3]
[424905770,1781262638000,-1242.28172396,0.00011643,3]
[424905767,1781262638000,-500.0,0.00011618,2]
[424905771,1781262638000,-1242.28172396,0.00011643,3]
[424905768,1781262638000,-151.0,0.00011641,2]
[424905773,1781262638000,-1242.28172396,0.00011643,3]
[424905772,1781262638000,-1242.28172396,0.00011643,3]
[424905774,1781262638000,-1063.86728495,0.00011643,3]
[424905787,1781262638000,-44585.39314352,0.00011745,2]
[424905775,1781262638000,-1063.86728495,0.00011643,3]
[424905779,1781262638000,-200.0,0.00011644,2]
[424905777,1781262638000,-1129.51324396,0.00011643,3]
[424905782,1781262638000,-150.0,0.00011681,2]
[424905778,1781262638000,-199.48738674,0.00011643,3]
[424905780,1781262638000,-44585.39314352,0.00011645,2]
[424905781,1781262638000,-200.0,0.00011651,2]
[424905784,1781262638000,-186.8,0.000117,4]
[424905794,1781262638000,-105083.33225055,0.00011747,2]
[424905798,1781262638000,-200.0,0.00011768,2]
[424905785,1781262638000,-15800.0,0.000117,4]
[424905801,1781262638000,-193.26637723,0.00011778,2]
[424905776,1781262638000,-1116.21972624,0.00011643,3]
[424905825,1781262638000,-500.0,0.00011933,2]
[424905826,1781262638000,-709.0,0.00011933,2]
[424905828,1781262638000,-709.0,0.00011933,2]
[424905859,1781262638000,-500.0,0.00011933,2]
[424905867,1781262638000,-500.0,0.00011933,2]
[424905863,1781262638000,-500.0,0.00011933,2]
[424905868,1781262638000,-502.73346068,0.00011933,2]
[424905865,1781262638000,-500.0,0.00011933,2]
[424905862,1781262638000,-500.0,0.00011933,2]
[424905864,1781262638000,-500.0,0.00011933,2]
[424905860,1781262638000,-500.0,0.00011933,2]
[424905861,1781262638000,-500.0,0.00011933,2]
[424905866,1781262638000,-500.0,0.00011933,2]
[424905870,1781262638000,-500.0,0.00011933,2]
[424905858,1781262638000,-285.06994889,0.00011933,2]
[424905871,1781262638000,-500.0,0.00011933,2]
[424905869,1781262638000,-418.91734028,0.00011933,2]
[424905872,1781262638000,-500.0,0.00011933,2]
[424905874,1781262638000,-500.0,0.00011933,2]
[424905877,1781262638000,-500.0,0.00011933,2]
[424905875,1781262638000,-500.0,0.00011933,2]
[424905878,1781262638000,-500.0,0.00011933,2]
[424905876,1781262638000,-500.0,0.00011933,2]
[424905879,1781262638000,-500.0,0.00011933,2]
[424905881,1781262638000,-500.0,0.00011933,2]
[424905883,1781262638000,-500.0,0.00011933,2]
[424905827,1781262638000,-500.0,0.00011933,2]
[424905873,1781262638000,-207.59558955,0.00011933,2]
[424905854,1781262638000,-150.0,0.00011933,2]
[424905880,1781262638000,-500.0,0.00011933,2]
[424905851,1781262638000,-500.0,0.00011933,2]
[424905852,1781262638000,-150.0,0.00011933,2]
[424905831,1781262638000,-500.0,0.00011933,2]
[424905830,1781262638000,-709.0,0.00011933,2]
[424905882,1781262638000,-500.0,0.00011933,2]
[424905834,1781262638000,-709.0,0.00011933,2]
[424905835,1781262638000,-709.0,0.00011933,2]
[424905833,1781262638000,-345.62769669,0.00011933,2]
[424905837,1781262638000,-709.0,0.00011933,2]
[424905839,1781262638000,-709.0,0.00011933,2]
[424905840,1781262638000,-709.0,0.00011933,2]
[424905846,1781262638000,-500.0,0.00011933,2]
[424905838,1781262638000,-709.0,0.00011933,2]
[424905832,1781262638000,-709.0,0.00011933,2]
[424905843,1781262638000,-150.0,0.00011933,2]
[424905853,1781262638000,-374.13126552,0.00011933,2]
[424905841,1781262638000,-709.0,0.00011933,2]
[424905855,1781262638000,-185.11145126,0.00011933,2]
[424905850,1781262638000,-298.03737678,0.00011933,2]
[424905849,1781262638000,-500.0,0.00011933,2]
[424905856,1781262638000,-500.0,0.00011933,2]
[424905857,1781262638000,-500.0,0.00011933,2]
[424905847,1781262638000,-500.0,0.00011933,2]
[424905845,1781262638000,-500.0,0.00011933,2]
[424905842,1781262638000,-715.54732619,0.00011933,2]
[424905844,1781262638000,-166.72751158,0.00011933,2]
[424905848,1781262638000,-500.0,0.00011933,2]
[424905904,1781262639000,-2000.0,0.00011984,2]
[424905910,1781262639000,-6348.6,0.00012145,2]
[424905909,1781262639000,-1829.44,0.00012113,2]
[424905899,1781262639000,-500.0,0.00011933,2]
[424905911,1781262639000,-44585.39314352,0.00012146,2]
[424905906,1781262639000,-200.0,0.00012004,2]
[424905915,1781262639000,-9222.61369723,0.0001236,2]
[424905912,1781262639000,-500.0,0.00012166,2]
[424905907,1781262639000,-44585.39314352,0.00012046,2]
[424905908,1781262639000,-7145.67,0.00012055,2]
[424905903,1781262639000,-44585.39314352,0.00011946,2]
[424905901,1781262639000,-156.94091345,0.00011933,2]
[424905913,1781262639000,-44585.39314352,0.00012247,2]
[424905905,1781262639000,-332.50341381,0.00012,2]
[424905900,1781262639000,-448.29391775,0.00011933,2]
[424905884,1781262639000,-500.0,0.00011933,2]
[424905895,1781262639000,-500.0,0.00011933,2]
[424905914,1781262639000,-44585.39314352,0.00012347,2]
[424905886,1781262639000,-500.0,0.00011933,2]
[424905889,1781262639000,-500.0,0.00011933,2]
[424905885,1781262639000,-500.0,0.00011933,2]
[424905888,1781262639000,-500.0,0.00011933,2]
[424905887,1781262639000,-500.0,0.00011933,2]
[424905897,1781262639000,-500.0,0.00011933,2]
[424905891,1781262639000,-500.0,0.00011933,2]
[424905893,1781262639000,-500.0,0.00011933,2]
[424905902,1781262639000,-160.0,0.00011933,2]
[424905894,1781262639000,-500.0,0.00011933,2]
[424905896,1781262639000,-500.0,0.00011933,2]
[424905898,1781262639000,-387.05378598,0.00011933,2]
[424905892,1781262639000,-500.0,0.00011933,2]
[424905890,1781262639000,-500.0,0.00011933,2]
[424905917,1781262639000,-558.31250894,0.00012398,2]
[424905926,1781262639000,-235.27635984,0.00012499,2]
[424905923,1781262639000,-250.0,0.00012476,2]
[424905940,1781262639000,-200.741753,0.00013156,2]
[424905938,1781262639000,-1601.13316532,0.00013,2]
[424905939,1781262639000,-678.02364108,0.00013122,2]
[424905941,1781262639000,-426.513247,0.00013156,2]
[424905936,1781262639000,-167.33,0.00012899,2]
[424905942,1781262639000,-1600.0,0.00013222,2]
[424905935,1781262639000,-276.03,0.00012877,2]
[424905943,1781262639000,-345.066113,0.0001324,2]
[424905945,1781262639000,-250.0,0.00013353,2]
[424905947,1781262639000,-161.315431,0.00013424,2]
[424905949,1781262639000,-281.846974,0.00013424,2]
[424905919,1781262639000,-1401.20101214,0.00012398,2]
[424905948,1781262639000,-160.0,0.00013424,2]
[424905950,1781262639000,-403.693949,0.00013424,2]
[424905944,1781262639000,-2000.0,0.00013315,2]
[424905937,1781262639000,-465.71051319,0.00012988,2]
[424905946,1781262639000,-9222.61369723,0.00013376,2]
[424905927,1781262639000,-56080.8613657,0.00012532,2]
[424905928,1781262639000,-1926.91384496,0.00012622,2]
[424905918,1781262639000,-1759.74592773,0.00012398,2]
[424905920,1781262639000,-56080.8613657,0.00012409,2]
[424905922,1781262639000,-300.0,0.00012476,2]
[424905921,1781262639000,-500.0,0.0001244,2]
[424905924,1781262639000,-500.0,0.00012476,2]
[424905930,1781262639000,-56080.8613657,0.00012656,2]
[424905916,1781262639000,-245.19472552,0.00012398,2]
[424905933,1781262639000,-185.66,0.00012756,2]
[424905931,1781262639000,-500.0,0.00012714,2]
[424905932,1781262639000,-212694.9957,0.00012747,2]
[424905934,1781262639000,-9222.61369723,0.00012868,2]
[424905925,1781262639000,-564.96724461,0.00012477,2]
[424905929,1781262639000,-255.92241164,0.00012648,2]
[424905966,1781262640000,-160.0,0.00013491,2]
[424905968,1781262640000,-256.633823,0.00013491,2]
[424905970,1781262640000,-150.0,0.00013522,2]
[424905967,1781262640000,-208.316911,0.00013491,2]
[424905969,1781262640000,-1000.0,0.000135,2]
[424905971,1781262640000,-150.0,0.00013556,2]
[424905974,1781262640000,-2398.26,0.0001358,2]
[424905976,1781262640000,-150.0,0.0001359,2]
[424905978,1781262640000,-150.0,0.00013624,2]
[424905965,1781262640000,-316.420574,0.00013491,2]
[424905977,1781262640000,-150.0,0.00013595,2]
[424905972,1781262640000,-298.320829,0.00013558,2]
[424905964,1781262640000,-238.210287,0.00013491,2]
[424905956,1781262640000,-150.0,0.00013488,2]
[424905962,1781262640000,-150.0,0.00013488,2]
[424905960,1781262640000,-150.0,0.00013488,2]
[424905961,1781262640000,-150.0,0.00013488,2]
[424905958,1781262640000,-150.0,0.00013488,2]
[424905959,1781262640000,-152.29573647,0.00013488,2]
[424905957,1781262640000,-150.0,0.00013488,2]
[424905951,1781262640000,-231.424643,0.00013424,2]
[424905953,1781262640000,-150.0,0.00013488,2]
[424905955,1781262640000,-150.0,0.00013488,2]
[424905954,1781262640000,-150.00000001,0.00013488,2]
[424905952,1781262640000,-150.0,0.00013488,2]
[424905980,1781262640000,-150.0,0.00013624,2]
[424905963,1781262640000,-160.0,0.00013491,2]
[424905979,1781262640000,-150.0,0.00013624,2]
[424905990,1781262640000,-500.0,0.00013698,2]
[424905981,1781262640000,-150.0,0.00013638,2]
[424905982,1781262640000,-150.0,0.00013658,2]
[424906009,1781262640000,-524.58,0.00013698,2]
[424906010,1781262640000,-524.58,0.00013698,2]
[424906008,1781262640000,-524.58,0.00013698,2]
[424906006,1781262640000,-524.58,0.00013698,2]
[424906007,1781262640000,-524.58,0.00013698,2]
[424906004,1781262640000,-502.39573893,0.00013698,2]
[424906003,1781262640000,-591.63575206,0.00013698,2]
[424906002,1781262640000,-500.0,0.00013698,2]
[424906001,1781262640000,-500.0,0.00013698,2]
[424905998,1781262640000,-500.0,0.00013698,2]
[424906000,1781262640000,-500.0,0.00013698,2]
[424905999,1781262640000,-500.0,0.00013698,2]
[424906005,1781262640000,-524.58,0.00013698,2]
[424905997,1781262640000,-500.0,0.00013698,2]
[424905983,1781262640000,-128513.2631416,0.00013664,2]
[424905995,1781262640000,-500.0,0.00013698,2]
[424905984,1781262640000,-500.0,0.00013684,2]
[424905985,1781262640000,-150.0,0.00013692,2]
[424905987,1781262640000,-2000.0,0.00013698,2]
[424905991,1781262640000,-500.0,0.00013698,2]
[424905986,1781262640000,-166.05619123,0.00013698,2]
[424905989,1781262640000,-200.0,0.00013698,2]
[424905993,1781262640000,-500.0,0.00013698,2]
[424905992,1781262640000,-500.0,0.00013698,2]
[424905994,1781262640000,-500.0,0.00013698,2]
[424905996,1781262640000,-500.0,0.00013698,2]
[424906011,1781262640000,-524.58,0.00013698,2]
[424906029,1781262641000,-567.54,0.00013698,2]
[424906035,1781262641000,-567.54,0.00013698,2]
[424906032,1781262641000,-567.54,0.00013698,2]
[424906031,1781262641000,-567.54,0.00013698,2]
[424906033,1781262641000,-567.54,0.00013698,2]
[424906034,1781262641000,-567.54,0.00013698,2]
[424906043,1781262641000,-500.0,0.00013698,2]
[424906036,1781262641000,-567.54,0.00013698,2]
[424906038,1781262641000,-567.54,0.00013698,2]
[424906039,1781262641000,-567.54,0.00013698,2]
[424906040,1781262641000,-567.54,0.00013698,2]
[424906041,1781262641000,-500.0,0.00013698,2]
[424906030,1781262641000,-567.54,0.00013698,2]
[424906037,1781262641000,-567.54,0.00013698,2]
[424906028,1781262641000,-567.54,0.00013698,2]
[424906014,1781262641000,-524.58,0.00013698,2]
[424906026,1781262641000,-567.54,0.00013698,2]
[424906012,1781262641000,-524.58,0.00013698,2]
[424906013,1781262641000,-524.58,0.00013698,2]
[424906042,1781262641000,-500.0,0.00013698,2]
[424906016,1781262641000,-524.58,0.00013698,2]
[424906015,1781262641000,-524.58,0.00013698,2]
[424906017,1781262641000,-524.58,0.00013698,2]
[424906027,1781262641000,-567.54,0.00013698,2]
[424906019,1781262641000,-524.58,0.00013698,2]
[424906020,1781262641000,-524.58,0.00013698,2]
[424906021,1781262641000,-524.58,0.00013698,2]
[424906022,1781262641000,-524.58,0.00013698,2]
[424906023,1781262641000,-567.54,0.00013698,2]
[424906025,1781262641000,-567.54,0.00013698,2]
[424906024,1781262641000,-567.54,0.00013698,2]
[424906018,1781262641000,-524.58,0.00013698,2]
[424906046,1781262641000,-500.0,0.00013698,2]
[424906044,1781262641000,-500.0,0.00013698,2]
[424906047,1781262641000,-500.0,0.00013698,2]
[424906066,1781262641000,-570.66,0.00013698,2]
[424906068,1781262641000,-570.66,0.00013698,2]
[424906072,1781262641000,-570.66,0.00013698,2]
[424906073,1781262641000,-570.66,0.00013698,2]
[424906071,1781262641000,-570.66,0.00013698,2]
[424906070,1781262641000,-570.66,0.00013698,2]
[424906067,1781262641000,-570.66,0.00013698,2]
[424906074,1781262641000,-570.66,0.00013698,2]
[424906076,1781262641000,-570.66,0.00013698,2]
[424906079,1781262641000,-500.0,0.00013698,2]
[424906078,1781262641000,-570.66,0.00013698,2]
[424906080,1781262641000,-500.0,0.00013698,2]
[424906077,1781262641000,-570.66,0.00013698,2]
[424906045,1781262641000,-500.0,0.00013698,2]
[424906075,1781262641000,-570.66,0.00013698,2]
[424906063,1781262641000,-570.66,0.00013698,2]
[424906069,1781262641000,-570.66,0.00013698,2]
[424906062,1781262641000,-570.66,0.00013698,2]
[424906048,1781262641000,-500.0,0.00013698,2]
[424906065,1781262641000,-570.66,0.00013698,2]
[424906050,1781262641000,-500.0,0.00013698,2]
[424906049,1781262641000,-500.0,0.00013698,2]
[424906051,1781262641000,-500.0,0.00013698,2]
[424906053,1781262641000,-500.0,0.00013698,2]
[424906057,1781262641000,-500.0,0.00013698,2]
[424906055,1781262641000,-500.0,0.00013698,2]
[424906052,1781262641000,-500.0,0.00013698,2]
[424906056,1781262641000,-523.0467315,0.00013698,2]
[424906058,1781262641000,-500.0,0.00013698,2]
[424906059,1781262641000,-500.0,0.00013698,2]
[424906060,1781262641000,-298.73640361,0.00013698,2]
[424906064,1781262641000,-570.66,0.00013698,2]
[424906061,1781262641000,-570.66,0.00013698,2]
[424906054,1781262641000,-500.0,0.00013698,2]
[424906107,1781262642000,-500.0,0.00013698,2]
[424906114,1781262642000,-500.0,0.00013698,2]
[424906122,1781262642000,-944.1,0.00013698,2]
[424906113,1781262642000,-944.1,0.00013698,2]
[424906110,1781262642000,-500.0,0.00013698,2]
[424906105,1781262642000,-500.0,0.00013698,2]
[424906116,1781262642000,-500.0,0.00013698,2]
[424906120,1781262642000,-944.1,0.00013698,2]
[424906109,1781262642000,-944.1,0.00013698,2]
[424906118,1781262642000,-287.06193287,0.00013698,2]
[424906117,1781262642000,-944.1,0.00013698,2]
[424906123,1781262642000,-944.1,0.00013698,2]
[424906121,1781262642000,-944.1,0.00013698,2]
[424906126,1781262642000,-323.84,0.00013698,2]
[424906106,1781262642000,-944.1,0.00013698,2]
[424906115,1781262642000,-944.1,0.00013698,2]
[424906104,1781262642000,-944.1,0.00013698,2]
[424906082,1781262642000,-500.0,0.00013698,2]
[424906103,1781262642000,-500.0,0.00013698,2]
[424906081,1781262642000,-500.0,0.00013698,2]
[424906084,1781262642000,-506.97171654,0.00013698,2]
[424906083,1781262642000,-500.0,0.00013698,2]
[424906085,1781262642000,-500.0,0.00013698,2]
[424906086,1781262642000,-944.1,0.00013698,2]
[424906087,1781262642000,-500.0,0.00013698,2]
[424906088,1781262642000,-944.1,0.00013698,2]
[424906101,1781262642000,-500.0,0.00013698,2]
[424906089,1781262642000,-500.0,0.00013698,2]
[424906090,1781262642000,-944.1,0.00013698,2]
[424906091,1781262642000,-944.1,0.00013698,2]
[424906098,1781262642000,-500.0,0.00013698,2]
[424906097,1781262642000,-944.1,0.00013698,2]
[424906100,1781262642000,-500.0,0.00013698,2]
[424906099,1781262642000,-944.1,0.00013698,2]
[424906102,1781262642000,-944.1,0.00013698,2]
[424906092,1781262642000,-500.0,0.00013698,2]
[424906119,1781262642000,-944.1,0.00013698,2]
[424906140,1781262642000,-591.74,0.00013698,2]
[424906127,1781262642000,-500.0,0.00013698,2]
[424906146,1781262642000,-591.74,0.00013698,2]
[424906148,1781262642000,-591.74,0.00013698,2]
[424906152,1781262642000,-591.74,0.00013698,2]
[424906154,1781262642000,-591.74,0.00013698,2]
[424906153,1781262642000,-1077.62,0.00013698,2]
[424906151,1781262642000,-1077.62,0.00013698,2]
[424906155,1781262642000,-1077.62,0.00013698,2]
[424906156,1781262642000,-1077.62,0.00013698,2]
[424906158,1781262642000,-1077.62,0.00013698,2]
[424906157,1781262642000,-591.74,0.00013698,2]
[424906159,1781262642000,-591.74,0.00013698,2]
[424906160,1781262642000,-1077.62,0.00013698,2]
[424906161,1781262642000,-591.74,0.00013698,2]
[424906163,1781262642000,-591.74,0.00013698,2]
[424906162,1781262642000,-591.74,0.00013698,2]
[424906145,1781262642000,-1077.62,0.00013698,2]
[424906149,1781262642000,-1077.62,0.00013698,2]
[424906124,1781262642000,-500.0,0.00013698,2]
[424906147,1781262642000,-1077.62,0.00013698,2]
[424906128,1781262642000,-500.0,0.00013698,2]
[424906129,1781262642000,-500.0,0.00013698,2]
[424906131,1781262642000,-1077.62,0.00013698,2]
[424906134,1781262642000,-591.74,0.00013698,2]
[424906150,1781262642000,-591.74,0.00013698,2]
[424906132,1781262642000,-1077.62,0.00013698,2]
[424906133,1781262642000,-1077.62,0.00013698,2]
[424906135,1781262642000,-1077.62,0.00013698,2]
[424906130,1781262642000,-254.97411398,0.00013698,2]
[424906139,1781262642000,-1077.62,0.00013698,2]
[424906138,1781262642000,-591.74,0.00013698,2]
[424906137,1781262642000,-1077.62,0.00013698,2]
[424906143,1781262642000,-1077.62,0.00013698,2]
[424906141,1781262642000,-1077.62,0.00013698,2]
[424906142,1781262642000,-591.74,0.00013698,2]
[424906144,1781262642000,-591.74,0.00013698,2]
[424906136,1781262642000,-591.74,0.00013698,2]
[424906186,1781262643000,-500.0,0.00013698,2]
[424906187,1781262643000,-500.0,0.00013698,2]
[424906185,1781262643000,-500.0,0.00013698,2]
[424906188,1781262643000,-500.0,0.00013698,2]
[424906189,1781262643000,-500.0,0.00013698,2]
[424906190,1781262643000,-500.0,0.00013698,2]
[424906191,1781262643000,-500.0,0.00013698,2]
[424906201,1781262643000,-1783.95,0.00013698,2]
[424906194,1781262643000,-500.0,0.00013698,2]
[424906192,1781262643000,-500.0,0.00013698,2]
[424906195,1781262643000,-189.37017155,0.00013698,2]
[424906196,1781262643000,-1783.95,0.00013698,2]
[424906198,1781262643000,-1783.95,0.00013698,2]
[424906197,1781262643000,-1783.95,0.00013698,2]
[424906184,1781262643000,-500.0,0.00013698,2]
[424906193,1781262643000,-500.0,0.00013698,2]
[424906182,1781262643000,-500.0,0.00013698,2]
[424906168,1781262643000,-500.0,0.00013698,2]
[424906181,1781262643000,-500.0,0.00013698,2]
[424906203,1781262643000,-1783.95,0.00013698,2]
[424906164,1781262643000,-591.74,0.00013698,2]
[424906165,1781262643000,-500.0,0.00013698,2]
[424906166,1781262643000,-500.0,0.00013698,2]
[424906167,1781262643000,-500.0,0.00013698,2]
[424906172,1781262643000,-500.0,0.00013698,2]
[424906169,1781262643000,-500.0,0.00013698,2]
[424906170,1781262643000,-500.0,0.00013698,2]
[424906171,1781262643000,-500.0,0.00013698,2]
[424906177,1781262643000,-500.0,0.00013698,2]
[424906175,1781262643000,-500.0,0.00013698,2]
[424906174,1781262643000,-500.0,0.00013698,2]
[424906176,1781262643000,-500.0,0.00013698,2]
[424906173,1781262643000,-500.0,0.00013698,2]
[424906180,1781262643000,-500.0,0.00013698,2]
[424906183,1781262643000,-500.0,0.00013698,2]
[424906205,1781262643000,-1783.95,0.00013698,2]
[424906199,1781262643000,-1783.95,0.00013698,2]
[424906207,1781262643000,-1783.95,0.00013698,2]
[424906223,1781262643000,-500.0,0.00013698,2]
[424906224,1781262643000,-500.0,0.00013698,2]
[424906225,1781262643000,-500.0,0.00013698,2]
[424906230,1781262643000,-500.0,0.00013698,2]
[424906233,1781262643000,-500.0,0.00013698,2]
[424906234,1781262643000,-515.12373106,0.00013698,2]
[424906231,1781262643000,-500.0,0.00013698,2]
[424906227,1781262643000,-500.0,0.00013698,2]
[424906235,1781262643000,-325.58534652,0.00013698,2]
[424906236,1781262643000,-500.0,0.00013698,2]
[424906241,1781262643000,-500.0,0.00013698,2]
[424906240,1781262643000,-500.0,0.00013698,2]
[424906237,1781262643000,-500.0,0.00013698,2]
[424906238,1781262643000,-500.0,0.00013698,2]
[424906204,1781262643000,-1783.95,0.00013698,2]
[424906239,1781262643000,-500.0,0.00013698,2]
[424906229,1781262643000,-500.0,0.00013698,2]
[424906222,1781262643000,-500.0,0.00013698,2]
[424906232,1781262643000,-500.0,0.00013698,2]
[424906226,1781262643000,-556.76587923,0.00013698,2]
[424906208,1781262643000,-1783.95,0.00013698,2]
[424906228,1781262643000,-239.02106663,0.00013698,2]
[424906206,1781262643000,-1783.95,0.00013698,2]
[424906212,1781262643000,-1783.95,0.00013698,2]
[424906209,1781262643000,-1783.95,0.00013698,2]
[424906210,1781262643000,-1783.95,0.00013698,2]
[424906213,1781262643000,-1783.95,0.00013698,2]
[424906215,1781262643000,-1783.95,0.00013698,2]
[424906211,1781262643000,-1783.95,0.00013698,2]
[424906219,1781262643000,-500.0,0.00013698,2]